[Event "XVI Memorial Lezcano Montalvo 2024"]
[Site "Gran Canaria"]
[Date "2024.03.31"]
[Round "9.32"]
[White "Macias Reyes, Jose Luis"]
[Black "Perez Celis, Alba"]
[Result "0-1"]
[ECO "A48"]
[WhiteElo "1677"]
[BlackElo "1854"]
[Annotator "NA RC COMBH"]
[PlyCount "64"]
[EventDate "2024.03.23"]
[EventType "swiss"]
[EventCountry "ESP"]
[SourceTitle "playchess.com"]
[Source "ChessBase"]
[SourceQuality "1"]
[TimeControl "5400+30"]

1. d4 {[%emt 0:00:30]} Nf6 {[%emt 0:13:49]} 2. Bf4 {[%emt 0:00:24]} g6 {[%emt 0:00:26]} 3. e3 {[%emt 0:00:35]} Bg7 {[%emt 0:00:08]} 4. Nf3 {[%emt 0:00:22]} d6 {[%emt 0:00:34]} 5. Be2 {[%emt 0:00:44]} Nbd7 {[%emt 0:00:31]} 6. h3 {[%emt 0:01:06]} O-O {[%emt 0:01:59]} 7. O-O {[%emt 0:00:24]} Qe8 {[%emt 0:02:08]} 8. Bh2 {[%emt 0:01:29]} e5 {[%emt 0:00:33]} 9. c4 {[%emt 0:00:50]} Ne4 {[%emt 0:01:27]} 10. Qc2 {[%emt 0:04:44]} f5 {[%emt 0:02:23]} 11. Nc3 {[%emt 0:08:33]} Nxc3 {[%emt 0:02:45]} 12. bxc3 {[%emt 0:03:45]} c5 {[%emt 0:05:18]} 13. Rfe1 {[%emt 0:04:49]} Nb6 {[%emt 0:03:26]} 14. a4 {[%emt 0:04:58]} Bd7 {[%emt 0:06:27]} 15. a5 {[%emt 0:02:45]} Nc8 {[%emt 0:01:15]} 16. Rab1 {[%emt 0:06:49]} b6 {[%emt 0:01:49]} 17. axb6 {[%emt 0:04:19]} Nxb6 {[%emt 0:00:45]} 18. Ra1 {[%emt 0:04:47]} Qe7 {[%emt 0:04:04]} 19. Ra5 {[%emt 0:03:00]} e4 {[%emt 0:04:04]} 20. Nd2 {[%emt 0:01:41]} g5 {[%emt 0:00:28]} 21. Nb3 {[%emt 0:06:18]} cxd4 {[%emt 0:05:22]} 22. cxd4 {[%emt 0:01:00]} f4 {[%emt 0:00:32]} 23. exf4 {[%emt 0:10:17]} gxf4 {[%emt 0:00:28]} 24. Bf3 {[%emt 0:06:40]} d5 {[%emt 0:03:32]} 25. cxd5 {[%emt 0:02:58]} Qb4 {[%emt 0:00:06]} 26. Qd2 {[%emt 0:09:20]} Qxb3 {[%emt 0:00:48]} 27. Be2 {[%emt 0:05:10]} f3 {[%emt 0:05:59]} 28. Bf1 {[%emt 0:01:22]} Nc4 {[%emt 0:09:19]} 29. Bxc4 {[%emt 0:00:09]} Qxc4 {[%emt 0:00:11]} 30. Rxe4 {[%emt 0:00:43]} Bb5 {[%emt 0:01:40]} 31. Ra1 {[%emt 0:01:38]} fxg2 {[%emt 0:00:34]} 32. Be5 {[%emt 0:00:29]} Qf1+ {[%emt 0:00:56]} 0-1

[Event "XVI Memorial Lezcano Montalvo 2024"]
[Site "Gran Canaria"]
[Date "2024.03.31"]
[Round "9.33"]
[White "Juan Miguel, Javier"]
[Black "Sanchez Montesdeoca, Isaac"]
[Result "0-1"]
[ECO "D05"]
[WhiteElo "1597"]
[BlackElo "1832"]
[Annotator "NA RC COMBH"]
[PlyCount "122"]
[EventDate "2024.03.23"]
[EventType "swiss"]
[EventCountry "ESP"]
[SourceTitle "playchess.com"]
[Source "ChessBase"]
[SourceQuality "1"]
[TimeControl "5400+30"]

1. d4 {[%emt 0:00:14]} d5 {[%emt 0:00:09]} 2. e3 {[%emt 0:00:22]} Nf6 {[%emt 0:02:06]} 3. Bd3 {[%emt 0:01:09]} g6 {[%emt 0:00:13]} 4. b3 {[%emt 0:01:55]} Bg7 {[%emt 0:00:13]} 5. Bb2 {[%emt 0:00:56]} c5 {[%emt 0:00:13]} 6. Nd2 {[%emt 0:01:27]} O-O {[%emt 0:00:30]} 7. Ngf3 {[%emt 0:02:12]} b6 {[%emt 0:00:30]} 8. O-O {[%emt 0:01:56]} Bb7 {[%emt 0:00:20]} 9. c4 {[%emt 0:04:51]} e6 {[%emt 0:00:33]} 10. Qc2 {[%emt 0:01:10]} Nbd7 {[%emt 0:03:59]} 11. Rfe1 {[%emt 0:04:27]} Rc8 {[%emt 0:00:15]} 12. Rac1 {[%emt 0:02:41]} Qc7 {[%emt 0:01:48]} 13. Ne5 {[%emt 0:03:18]} Nxe5 {[%emt 0:00:32]} 14. dxe5 {[%emt 0:00:06]} Nd7 {[%emt 0:02:49]} 15. f4 {[%emt 0:01:23]} Qd8 {[%emt 0:00:23]} 16. Nf3 {[%emt 0:02:23]} Qe7 {[%emt 0:01:27]} 17. Rcd1 {[%emt 0:05:30]} Rfd8 {[%emt 0:01:17]} 18. Ba3 {[%emt 0:03:41]} Qe8 {[%emt 0:00:18]} 19. Qf2 {[%emt 0:06:01]} Nf8 {[%emt 0:07:08]} 20. Qe2 {[%emt 0:06:19]} Rc7 {[%emt 0:00:15]} 21. Rd2 {[%emt 0:01:43]} Ba8 {[%emt 0:05:02]} 22. Red1 {[%emt 0:06:13]} Qe7 {[%emt 0:00:52]} 23. cxd5 {[%emt 0:05:25]} exd5 {[%emt 0:05:41]} 24. e4 {[%emt 0:01:16]} d4 {[%emt 0:00:31]} 25. Bc4 {[%emt 0:00:25]} Qe8 {[%emt 0:00:45]} 26. Re1 {[%emt 0:06:46]} Ne6 {[%emt 0:01:29]} 27. g3 {[%emt 0:02:11]} Qc6 {[%emt 0:04:07]} 28. Bb5 {[%emt 0:02:16]} Qb7 {[%emt 0:00:13]} 29. Ba6 {[%emt 0:00:04]} Qb8 {[%emt 0:00:42]} 30. f5 {[%emt 0:01:13]} Nf8 {[%emt 0:02:31]} 31. h4 {[%emt 0:02:17]} Bh6 {[%emt 0:04:50]} 32. f6 {[%emt 0:04:12]} Ne6 {[%emt 0:01:02]} 33. Rdd1 {[%emt 0:01:24]} Bc6 {[%emt 0:01:08]} 34. Bd3 {[%emt 0:01:38]} Qc8 {[%emt 0:00:43]} 35. Bc1 {[%emt 0:01:00]} Bxc1 {[%emt 0:00:24]} 36. Rxc1 {[%emt 0:00:07]} Qd7 {[%emt 0:01:07]} 37. Qd2 {[%emt 0:00:53]} Qe8 {[%emt 0:00:10]} 38. Re2 {[%emt 0:01:27]} b5 {[%emt 0:02:41]} 39. g4 {[%emt 0:02:35]} Kh8 {[%emt 0:03:15]} 40. h5 {[%emt 0:03:15]} Qd7 {[%emt 0:00:57]} 41. Qh6 {[%emt 0:01:01]} Rg8 {[%emt 0:00:51]} 42. hxg6 {[%emt 0:03:43]} Rxg6 {[%emt 0:47:31]} 43. Qh1 {[%emt 0:08:55]} Nf4 {[%emt 0:00:00]} 44. Rh2 {[%emt 0:00:00]} Qxg4+ {[%emt 0:00:00]} 45. Kf1 {[%emt 0:00:00]} h5 {[%emt 0:00:00]} 46. Rh4 {[%emt 0:00:00]} Qg3 {[%emt 0:00:00]} 47. Rc2 {[%emt 0:00:00]} Bd7 {[%emt 0:00:00]} 48. Rxh5+ {[%emt 0:00:00]} Nxh5 {[%emt 0:00:00]} 49. Qxh5+ {[%emt 0:00:00]} Kg8 {[%emt 0:00:00]} 50. Rh2 {[%emt 0:00:00]} Kf8 {[%emt 0:00:00]} 51. Qh8+ {[%emt 0:00:00]} Rg8 {[%emt 0:00:00]} 52. Qh6+ {[%emt 0:00:00]} Ke8 {[%emt 0:00:00]} 53. Ke2 {[%emt 0:00:00]} Bg4 {[%emt 0:00:00]} 54. Rf2 {[%emt 0:00:00]} c4 {[%emt 0:00:00]} 55. bxc4 {[%emt 0:00:00]} bxc4 {[%emt 0:00:00]} 56. Qd2 {[%emt 0:00:00]} Bxf3+ {[%emt 0:00:00]} 57. Rxf3 {[%emt 0:00:00]} Qh2+ {[%emt 0:00:00]} 58. Rf2 {[%emt 0:00:11]} Qh5+ {[%emt 0:00:00]} 59. Kf1 {[%emt 0:00:35]} cxd3 {[%emt 0:00:00]} 60. Qxd3 {[%emt 0:00:37]} Rc1+ {[%emt 0:00:00]} 61. Qd1 {[%emt 0:00:06]} Rxd1# {[%emt 0:09:30]} 0-1

[Event "XVI Memorial Lezcano Montalvo 2024"]
[Site "Gran Canaria"]
[Date "2024.03.31"]
[Round "9.34"]
[White "Rivero Reyes, Alejandro"]
[Black "Fernandez Hernandez, Javier"]
[Result "0-1"]
[ECO "C77"]
[WhiteElo "1799"]
[BlackElo "1690"]
[Annotator "NA RC COMBH"]
[PlyCount "135"]
[EventDate "2024.03.23"]
[EventType "swiss"]
[EventCountry "ESP"]
[SourceTitle "playchess.com"]
[Source "ChessBase"]
[SourceQuality "1"]
[TimeControl "5400+30"]

1. e4 {[%emt 0:00:48]} e5 {[%emt 0:00:05]} 2. Nf3 {[%emt 0:00:05]} Nc6 {[%emt 0:00:04]} 3. Bb5 {[%emt 0:00:35]} Nf6 {[%emt 0:00:09]} 4. d3 {[%emt 0:00:22]} Bc5 {[%emt 0:00:58]} 5. c3 {[%emt 0:00:38]} Qe7 {[%emt 0:02:02]} 6. O-O {[%emt 0:01:03]} a6 {[%emt 0:00:41]} 7. Ba4 {[%emt 0:03:33]} b5 {[%emt 0:00:36]} 8. Bc2 {[%emt 0:00:26]} d6 {[%emt 0:02:12]} 9. Re1 {[%emt 0:02:07]} Bg4 {[%emt 0:00:39]} 10. Nbd2 {[%emt 0:00:34]} O-O {[%emt 0:00:14]} 11. h3 {[%emt 0:00:54]} Bh5 {[%emt 0:00:05]} 12. Nf1 {[%emt 0:00:21]} h6 {[%emt 0:05:16]} 13. Ng3 {[%emt 0:00:31]} Bg6 {[%emt 0:00:05]} 14. Nh4 {[%emt 0:00:33]} Nd7 {[%emt 0:03:52]} 15. Nhf5 {[%emt 0:10:27]} Qf6 {[%emt 0:00:29]} 16. Qf3 {[%emt 0:04:59]} Rfe8 {[%emt 0:03:10]} 17. h4 {[%emt 0:05:54]} Rab8 {[%emt 0:05:57]} 18. h5 {[%emt 0:02:15]} Bh7 {[%emt 0:00:05]} 19. Re2 {[%emt 0:04:29]} Nf8 {[%emt 0:03:48]} 20. Nxh6+ {[%emt 0:01:23]} Kh8 {[%emt 0:00:15]} 21. Nxf7+ {[%emt 0:01:07]} Kg8 {[%emt 0:00:08]} 22. Nh6+ {[%emt 0:03:08]} Kh8 {[%emt 0:00:09]} 23. Nhf5 {[%emt 0:02:19]} Ne6 {[%emt 0:01:16]} 24. Be3 {[%emt 0:04:05]} Nf4 {[%emt 0:02:30]} 25. Rd2 {[%emt 0:01:55]} Bb6 {[%emt 0:00:54]} 26. Bxf4 {[%emt 0:00:56]} exf4 {[%emt 0:00:09]} 27. Qxf4 {[%emt 0:00:37]} Ne5 {[%emt 0:01:02]} 28. Bb3 {[%emt 0:03:45]} Rf8 {[%emt 0:01:32]} 29. d4 {[%emt 0:00:58]} Nd7 {[%emt 0:01:34]} 30. Re1 {[%emt 0:03:52]} Rbe8 {[%emt 0:00:08]} 31. Bc2 {[%emt 0:01:22]} Re6 {[%emt 0:04:14]} 32. Qg4 {[%emt 0:06:04]} a5 {[%emt 0:05:40]} 33. Nxg7 {[%emt 0:06:44]} Re7 {[%emt 0:00:55]} 34. N7f5 {[%emt 0:01:10]} Rg8 {[%emt 0:00:14]} 35. Qh4 {[%emt 0:01:03]} Qxh4 {[%emt 0:05:40]} 36. Nxh4 {[%emt 0:00:12]} Reg7 {[%emt 0:02:16]} 37. Bb3 {[%emt 0:02:32]} Rf8 {[%emt 0:00:05]} 38. Nhf5 {[%emt 0:01:10]} Rg5 {[%emt 0:00:17]} 39. Bd1 {[%emt 0:04:11]} a4 {[%emt 0:00:53]} 40. Bf3 {[%emt 0:00:20]} c5 {[%emt 0:00:11]} 41. dxc5 {[%emt 0:00:49]} Bxc5 {[%emt 0:00:56]} 42. Nd4 {[%emt 0:04:37]} Ne5 {[%emt 0:50:05]} 43. Ndf5 {[%emt 0:01:13]} Bxf5 {[%emt 0:00:00]} 44. exf5 {[%emt 0:01:01]} Rxg3 {[%emt 0:00:00]} 45. Be4 {[%emt 0:03:37]} Rg4 {[%emt 0:00:00]} 46. b4 {[%emt 0:01:09]} axb3 {[%emt 0:00:00]} 47. axb3 {[%emt 0:00:02]} b4 {[%emt 0:00:00]} 48. c4 {[%emt 0:00:22]} Rfg8 {[%emt 0:00:00]} 49. Kf1 {[%emt 0:00:28]} Rf4 {[%emt 0:00:00]} 50. g3 {[%emt 0:00:55]} Rxg3 {[%emt 0:00:00]} 51. Ra2 {[%emt 0:01:00]} Ng4 {[%emt 0:00:00]} 52. Ra8+ {[%emt 0:00:41]} Kg7 {[%emt 0:00:00]} 53. f6+ {[%emt 0:01:21]} Nxf6 {[%emt 0:00:00]} 54. h6+ {[%emt 0:01:45]} Kxh6 {[%emt 0:00:00]} 55. Rh8+ {[%emt 0:00:56]} Kg7 {[%emt 0:00:00]} 56. Rh2 {[%emt 0:00:16]} Rxb3 {[%emt 0:00:00]} 57. Bc6 {[%emt 0:00:47]} Rb2 {[%emt 0:00:00]} 58. Rg2+ {[%emt 0:03:52]} Kh6 {[%emt 0:00:00]} 59. Rh2+ {[%emt 0:01:42]} Kg5 {[%emt 0:00:00]} 60. Rg2+ {[%emt 0:00:15]} Ng4 {[%emt 0:00:00]} 61. f3 {[%emt 0:01:15]} Rxg2 {[%emt 0:00:00]} 62. Kxg2 {[%emt 0:00:09]} Ne3+ {[%emt 0:00:00]} 63. Kh3 {[%emt 0:00:32]} Rxc4 {[%emt 0:00:00]} 64. Rg1+ {[%emt 0:00:41]} Kf4 {[%emt 0:00:00]} 65. Rg8 {[%emt 0:00:19]} b3 {[%emt 0:00:00]} 66. Be4 {[%emt 0:00:47]} Rb4 {[%emt 0:00:00]} 67. Rg1 {[%emt 0:00:40]} Nc2 {[%emt 0:00:00]} 68. Rg2 {[%emt 0:03:52]} 0-1

[Event "XVI Memorial Lezcano Montalvo 2024"]
[Site "Gran Canaria"]
[Date "2024.03.31"]
[Round "9.35"]
[White "Gonzalez Perdomo, Sergio"]
[Black "Morell Rojas, Samuel"]
[Result "1-0"]
[ECO "E90"]
[WhiteElo "1792"]
[BlackElo "1590"]
[Annotator "NA RC COMBH"]
[PlyCount "96"]
[EventDate "2024.03.23"]
[EventType "swiss"]
[EventCountry "ESP"]
[SourceTitle "playchess.com"]
[Source "ChessBase"]
[SourceQuality "1"]
[TimeControl "5400+30"]

1. Nf3 {[%emt 0:00:06]} Nf6 {[%emt 0:01:59]} 2. c4 {[%emt 0:00:06]} g6 {[%emt 0:00:42]} 3. d4 {[%emt 0:00:17]} Bg7 {[%emt 0:00:30]} 4. Nc3 {[%emt 0:00:05]} O-O {[%emt 0:00:27]} 5. e4 {[%emt 0:00:04]} d6 {[%emt 0:00:30]} 6. h3 {[%emt 0:00:21]} Re8 {[%emt 0:05:46]} 7. Bf4 {[%emt 0:00:53]} Nbd7 {[%emt 0:01:17]} 8. Qd2 {[%emt 0:00:56]} e5 {[%emt 0:03:28]} 9. dxe5 {[%emt 0:00:57]} dxe5 {[%emt 0:01:42]} 10. Bg5 {[%emt 0:00:55]} Nc5 {[%emt 0:11:30]} 11. Qxd8 {[%emt 0:01:44]} Rxd8 {[%emt 0:00:17]} 12. Nd2 {[%emt 0:09:10]} Be6 {[%emt 0:26:27]} 13. Nd5 {[%emt 0:01:01]} Bxd5 {[%emt 0:01:39]} 14. cxd5 {[%emt 0:00:20]} Rd7 {[%emt 0:03:04]} 15. f3 {[%emt 0:01:10]} c6 {[%emt 0:06:25]} 16. Rc1 {[%emt 0:00:31]} b6 {[%emt 0:04:04]} 17. dxc6 {[%emt 0:00:28]} Rd6 {[%emt 0:04:24]} 18. b4 {[%emt 0:04:23]} Ne6 {[%emt 0:01:00]} 19. Be3 {[%emt 0:00:14]} Ne8 {[%emt 0:02:09]} 20. Ba6 {[%emt 0:02:53]} N8c7 {[%emt 0:00:57]} 21. Bb7 {[%emt 0:00:18]} Rad8 {[%emt 0:02:56]} 22. Nc4 {[%emt 0:01:26]} Rd3 {[%emt 0:01:38]} 23. Ke2 {[%emt 0:00:25]} Nf4+ {[%emt 0:03:24]} 24. Bxf4 {[%emt 0:00:37]} exf4 {[%emt 0:00:00]} 25. Rhd1 {[%emt 0:00:07]} Rxd1 {[%emt 0:03:56]} 26. Rxd1 {[%emt 0:00:02]} Rxd1 {[%emt 0:00:02]} 27. Kxd1 {[%emt 0:00:02]} Bc3 {[%emt 0:03:49]} 28. a3 {[%emt 0:00:10]} b5 {[%emt 0:00:21]} 29. Kc2 {[%emt 0:00:34]} Bxb4 {[%emt 0:02:31]} 30. axb4 {[%emt 0:00:11]} bxc4 {[%emt 0:00:13]} 31. Kc3 {[%emt 0:00:07]} Kf8 {[%emt 0:00:52]} 32. Kxc4 {[%emt 0:00:05]} Ke7 {[%emt 0:00:40]} 33. Kc5 {[%emt 0:00:40]} Ke6 {[%emt 0:00:56]} 34. Bc8+ {[%emt 0:00:51]} Ke5 {[%emt 0:02:15]} 35. b5 {[%emt 0:00:21]} f6 {[%emt 0:00:59]} 36. b6 {[%emt 0:00:13]} axb6+ {[%emt 0:00:27]} 37. Kxb6 {[%emt 0:00:01]} Kd6 {[%emt 0:00:25]} 38. Bd7 {[%emt 0:01:15]} g5 {[%emt 0:01:24]} 39. Bf5 {[%emt 0:00:48]} h6 {[%emt 0:00:30]} 40. Bg6 {[%emt 0:03:10]} Na8+ {[%emt 0:00:37]} 41. Kb7 {[%emt 0:00:04]} Nc7 {[%emt 0:00:24]} 42. Bf7 {[%emt 0:00:13]} Nb5 {[%emt 0:00:30]} 43. Bc4 {[%emt 0:02:24]} Nc7 {[%emt 0:00:28]} 44. Bd5 {[%emt 0:00:21]} Nb5 {[%emt 0:00:36]} 45. Kc8 {[%emt 0:01:18]} Ke7 {[%emt 0:03:38]} 46. Bb3 {[%emt 0:00:38]} Na7+ {[%emt 0:00:53]} 47. Kc7 {[%emt 1:11:05]} Nb5+ {[%emt 0:01:19]} 48. Kc8 {[%emt 0:00:30]} h5 {[%emt 0:00:30]} 1-0

[Event "XVI Memorial Lezcano Montalvo 2024"]
[Site "Gran Canaria"]
[Date "2024.03.31"]
[Round "9.36"]
[White "Sanchez Gonzalez, Diego"]
[Black "Julien Casteleiro, Ariel"]
[Result "0-1"]
[ECO "C02"]
[WhiteElo "1908"]
[BlackElo "1739"]
[Annotator "TA"]
[PlyCount "99"]
[EventDate "2024.03.23"]
[EventType "swiss"]
[EventCountry "ESP"]
[SourceTitle "playchess.com"]
[Source "ChessBase"]
[SourceQuality "1"]
[TimeControl "5400+30"]

{[%evp 21,99,6,25,0,17,-18,-20,-14,0,0,4,-35,-39,-60,-54,-69,-61,-87,-64,-77,-89,-131,-83,-90,-55,-59,0,-68,-33,-83,-54,-64,-47,-83,-74,-98,-46,-88,-36,-115,-89,-108,-115,-111,-107,-325,-316,-546,-131,-137,-148,-132,-139,-135,-125,-131,-135,-123,-89,-94,-84,-78,-70,-116,-114,-114,-116,-120,-116,-158,-169,-146,-101,-245,-110,-117,-93,-160,-30,-191]} 1. e4 {[%emt 0:00:02]} e6 {[%emt 0:08:33]} 2. d4 {[%emt 0:00:06]} d5 {[%emt 0:00:16]} 3. e5 {[%emt 0:00:06]} c5 {[%emt 0:00:21]} 4. c3 {[%emt 0:00:06]} Nc6 {[%emt 0:00:16]} 5. Nf3 {[%emt 0:00:08]} Qb6 {[%emt 0:00:51]} 6. a3 {[%emt 0:00:06]} Bd7 {[%emt 0:00:15]} 7. b4 {[%emt 0:00:05]} cxd4 {[%emt 0:01:05]} 8. cxd4 {[%emt 0:00:09]} Rc8 {[%emt 0:00:44]} 9. Be3 {[%emt 0:00:13]} Nh6 {[%emt 0:00:57]} 10. Bd3 {[%emt 0:00:18]} Ng4 {[%emt 0:02:05]} 11. O-O {[%emt 0:00:16]} Be7 {[%emt 0:01:35]} 12. Qd2 {[%emt 0:04:04]} O-O {[%emt 0:04:53]} 13. h3 {[%emt 0:05:43]} Nxe3 {[%emt 0:00:46]} 14. fxe3 {[%emt 0:00:15] The position is equal.} f6 {[%emt 0:00:52]} 15. exf6 {[%emt 0:01:11]} Bxf6 {[%emt 0:01:31][%cal Rc6d4]} 16. Bc2 {[%emt 0:02:26]} Qc7 {[%emt 0:04:14]} 17. Ra2 {[%emt 0:11:51]} Be8 {[%emt 0:04:02]} 18. Qf2 {[%emt 0:09:01][%cal Of3g5] Strongly threatening Ng5!} Bf7 {[%emt 0:04:14]} 19. Bb3 {[%emt 0:40:55]} Bg6 {[%emt 0:02:06]} 20. Nbd2 {[%emt 0:01:43]} Qb6 {[%emt 0:02:17]} 21. Kh1 {[%emt 0:04:52]} h6 {[%emt 0:06:59]} (21... Ne7 $142 $1 22. Bd1 Nf5) 22. Raa1 $17 {[%emt 0:00:53]} Qb5 {[%emt 0:02:25]} 23. Rac1 {[%emt 0:01:33][%cal Oe3e4]} Be7 {[%emt 0:05:37]} (23... a5 $15 24. e4 axb4 (24... Bxe4 25. Nxe4 dxe4 26. Bxe6+ Kh8 27. Bxc8 $16) 25. exd5 exd5) 24. Qg3 {[%emt 0:03:59]} (24. e4 $11) 24... Bf5 {[%emt 0:03:15]} 25. Ba2 {[%emt 0:12:11]} (25. e4 $15 dxe4 (25... Bxe4 26. Qe1 $15) 26. Ne5) 25... a5 {[%emt 0:01:59]} 26. bxa5 {[%emt 0:00:40]} Qxa5 {[%emt 0:00:52]} 27. Bb1 {[%emt 0:00:19]} Qxa3 {[%emt 0:01:04]} 28. Bxf5 {[%emt 0:00:26]} Rxf5 {[%emt 0:02:21]} (28... exf5 $17 29. Rb1 Bd6 (29... Qxe3 30. Rfe1 $17)) 29. Rfe1 {[%emt 0:00:43]} Rcf8 {[%emt 0:00:53]} (29... Qd6 $17 30. Qf2 Rff8) 30. e4 {[%emt 0:00:18]} ({White should play} 30. Qc7 $15) 30... Rf4 {[%emt 0:01:57] Threatens to win with ...dxe4.} 31. Qg6 {[%emt 0:00:43]} R4f6 {[%emt 0:01:43]} 32. Qg4 {[%emt 0:00:10]} Kh7 {[%emt 0:02:22]} 33. Qh5 {[%emt 0:00:51]} (33. exd5 $17 exd5 34. Qd7) 33... Rf4 $19 {[%emt 0:02:08] ...g6 is the strong threat.} 34. Ne5 {[%emt 0:00:30]} (34. exd5 g6 (34... Nxd4 35. Nxd4 Rxd4 36. Nf3 $17) 35. Nc4 Qb4 $19 (35... gxh5 36. Nxa3 Bxa3 37. Ra1 $17) (35... gxh5 36. Nxa3 Bxa3 37. dxc6 $17)) (34. Ra1 Qd6 35. Ne5 Nxe5 (35... Nxd4 36. Rab1 $19) 36. dxe5) 34... Qg3 $2 {[%emt 0:08:30] Active counter play!} (34... Nxd4 35. Qg6+ Kg8 36. exd5 $17) (34... Nxe5 $19 {and Black stays clearly on top.} 35. Qxe5 Bb4) 35. Nf1 {[%emt 0:00:33]} Qg5 {[%emt 0:02:36] Some like it hot} 36. Qxg5 {[%emt 0:00:32]} Bxg5 {[%emt 0:00:38]} ({Don't play} 36... hxg5 37. exd5 exd5 (37... Nxd4 38. dxe6 Ba3 39. Rb1 $11) 38. Nxc6 $17) 37. exd5 {[%emt 0:00:09]} exd5 {[%emt 0:02:11] Hoping for ...Re4.} 38. Nxc6 {[%emt 0:00:35]} bxc6 {[%emt 0:00:29]} 39. Nh2 {[%emt 0:00:26]} R4f6 {[%emt 0:02:50]} (39... Rxd4 40. Rxc6 Rf6 41. Rc5) 40. Rc2 {[%emt 0:00:27]} Bh4 {[%emt 0:00:47]} 41. Rec1 {[%emt 0:00:12]} Bg3 {[%emt 0:04:21]} 42. Nf3 {[%emt 0:00:24]} (42. Rxc6 $15 Rxc6 43. Rxc6) 42... Ra8 $17 {[%emt 0:00:32]} 43. Kg1 {[%emt 0:00:52]} Ra6 {[%emt 0:00:50]} 44. Kf1 {[%emt 0:00:22]} g5 {[%emt 0:00:59]} 45. Re2 {[%emt 0:01:02]} h5 $1 {[%emt 0:01:12] And now ...Bf4 would win.} 46. Kg1 {[%emt 0:00:21]} Bf4 {[%emt 0:00:56]} 47. Rf1 {[%emt 0:00:39] [#]} (47. Rb1 $17) 47... Ra3 {[%emt 0:01:45]} (47... g4 $1 $19 {[%cal Rg4f3] has better winning chances.} 48. hxg4 hxg4) 48. Re7+ {[%emt 0:00:31]} Kh6 {[%emt 0:00:55]} 49. Rfe1 {[%emt 0:00:31] [#] Inhibits Be3+.} (49. Rd1 $142) 49... g4 {[%emt 0:02:23]} ({Better is} 49... Bg3 $1 $17 {[%cal Rg3e1]} 50. R7e6 Rg6) 50. R7e6 $2 {[%emt 0:01:02] Weighted Error Value: White=0.35/Black=0.41.  Loses game:     	White=2     	---        Missed win:     	---       	Black=1      Mistake:       	White=7     	Black=6      Inaccurate:     	White=7     	Black=4      OK:         	White=11    	Black=9      Best:        	White=2     	Black=1} (50. hxg4 $11 hxg4 51. Ne5) 0-1

[Event "XVI Memorial Lezcano Montalvo 2024"]
[Site "Gran Canaria"]
[Date "2024.03.31"]
[Round "9.37"]
[White "Gonzalez Ortega, Jose Miguel"]
[Black "Martinez Correa, Rafael"]
[Result "0-1"]
[ECO "A06"]
[WhiteElo "1858"]
[BlackElo "1597"]
[Annotator "NA RC COMBH"]
[PlyCount "134"]
[EventDate "2024.03.23"]
[EventType "swiss"]
[EventCountry "ESP"]
[SourceTitle "playchess.com"]
[Source "ChessBase"]
[SourceQuality "1"]
[TimeControl "5400+30"]

1. b3 {[%emt 0:02:37]} d5 {[%emt 0:00:15]} 2. Bb2 {[%emt 0:00:16]} c5 {[%emt 0:00:08]} 3. e3 {[%emt 0:00:22]} Nc6 {[%emt 0:00:20]} 4. Nf3 {[%emt 0:00:37]} Nf6 {[%emt 0:00:36]} 5. Bb5 {[%emt 0:00:22]} Bd7 {[%emt 0:00:54]} 6. O-O {[%emt 0:00:18]} e6 {[%emt 0:00:26]} 7. d4 {[%emt 0:00:39]} Be7 {[%emt 0:00:39]} 8. c4 {[%emt 0:00:23]} a6 {[%emt 0:00:38]} 9. Bxc6 {[%emt 0:00:25]} Bxc6 {[%emt 0:00:07]} 10. Ne5 {[%emt 0:00:45]} O-O {[%emt 0:00:45]} 11. dxc5 {[%emt 0:02:08]} Bxc5 {[%emt 0:01:12]} 12. Nxc6 {[%emt 0:01:23]} bxc6 {[%emt 0:00:08]} 13. Nd2 {[%emt 0:01:38]} Be7 {[%emt 0:02:35]} 14. Rc1 {[%emt 0:00:50]} Nd7 {[%emt 0:01:28]} 15. Qc2 {[%emt 0:01:40]} Bf6 {[%emt 0:00:43]} 16. Rfd1 {[%emt 0:00:59]} Bxb2 {[%emt 0:01:09]} 17. Qxb2 {[%emt 0:00:11]} Rc8 {[%emt 0:00:44]} 18. Nf3 {[%emt 0:00:31]} Qf6 {[%emt 0:00:46]} 19. Qa3 {[%emt 0:00:45]} Nb8 {[%emt 0:03:50]} 20. cxd5 {[%emt 0:02:07]} cxd5 {[%emt 0:01:33]} 21. h3 {[%emt 0:01:04]} h6 {[%emt 0:02:23]} 22. Qb4 {[%emt 0:03:54]} Qb2 {[%emt 0:03:18]} 23. Rxc8 {[%emt 0:00:26]} Rxc8 {[%emt 0:00:13]} 24. Qb7 {[%emt 0:00:23]} Qc2 {[%emt 0:01:48]} 25. Rd2 {[%emt 0:01:51]} Qc6 {[%emt 0:01:47]} 26. Qe7 {[%emt 0:01:45]} Qc5 {[%emt 0:01:08]} 27. Qb7 {[%emt 0:03:32]} Qc6 {[%emt 0:00:44]} 28. Qb4 {[%emt 0:01:07]} Qc5 {[%emt 0:00:47]} 29. Qf4 {[%emt 0:00:43]} Qc7 {[%emt 0:01:17]} 30. Qd4 {[%emt 0:03:09]} Qc3 {[%emt 0:01:25]} 31. Qh4 {[%emt 0:01:37]} Nc6 {[%emt 0:02:40]} 32. Qf4 {[%emt 0:05:19]} Qb4 {[%emt 0:01:33]} 33. Qg3 {[%emt 0:02:00]} Ne7 {[%emt 0:01:27]} 34. Rd4 {[%emt 0:02:15]} Qc5 {[%emt 0:02:16]} 35. Ra4 {[%emt 0:03:23]} Nf5 {[%emt 0:02:47]} 36. Qe5 {[%emt 0:01:10]} a5 {[%emt 0:01:39]} 37. g4 {[%emt 0:00:58]} Ne7 {[%emt 0:02:45]} 38. Qd4 {[%emt 0:01:02]} Qxd4 {[%emt 0:02:03]} 39. Nxd4 {[%emt 0:00:08]} Rc5 {[%emt 0:00:13]} 40. Kg2 {[%emt 0:00:48]} Nc8 {[%emt 0:01:03]} 41. b4 {[%emt 0:00:45]} axb4 {[%emt 0:01:05]} 42. Rxb4 {[%emt 0:00:12]} Nd6 {[%emt 0:00:00]} 43. a4 {[%emt 0:00:37]} Kf8 {[%emt 0:00:45]} 44. Rb6 {[%emt 0:01:53]} Nc4 {[%emt 0:01:00]} 45. Rb8+ {[%emt 0:01:44]} Ke7 {[%emt 0:00:14]} 46. Nb3 {[%emt 0:00:20]} Rc7 {[%emt 0:00:43]} 47. Nd4 {[%emt 0:00:58]} e5 {[%emt 0:02:45]} 48. Nf5+ {[%emt 0:02:16]} Kf6 {[%emt 0:01:03]} 49. Rd8 {[%emt 0:01:07]} Rc5 {[%emt 0:01:21]} 50. Kg3 {[%emt 0:01:04]} h5 {[%emt 0:01:57]} 51. Rd7 {[%emt 0:01:29]} hxg4 {[%emt 0:03:37]} 52. hxg4 {[%emt 0:00:13]} Ke6 {[%emt 0:00:53]} 53. Ra7 {[%emt 0:00:34]} g6 {[%emt 0:01:54]} 54. Ra6+ {[%emt 0:00:30]} Kd7 {[%emt 0:00:53]} 55. Nh6 {[%emt 0:00:27]} Nd6 {[%emt 0:00:20]} 56. Ra7+ {[%emt 0:00:47]} Rc7 {[%emt 0:01:44]} 57. Ra5 {[%emt 0:00:28]} Ke6 {[%emt 0:00:51]} 58. Ra6 {[%emt 0:00:56]} d4 {[%emt 0:01:32]} 59. exd4 {[%emt 0:00:34]} exd4 {[%emt 0:00:31]} 60. Kf3 {[%emt 0:00:07]} Kd5 {[%emt 0:00:51]} 61. Ke2 {[%emt 0:00:42]} Rc3 {[%emt 0:00:41]} 62. Ng8 {[%emt 0:01:03]} d3+ {[%emt 0:00:28]} 63. Kd1 {[%emt 0:01:02]} Nc4 {[%emt 0:01:54]} 64. Ne7+ {[%emt 0:03:43]} Ke4 {[%emt 0:00:55]} 65. f3+ {[%emt 0:02:38]} Kxf3 {[%emt 0:00:39]} 66. Rf6+ {[%emt 0:00:28]} Kg2 {[%emt 0:01:19]} 67. Rc6 {[%emt 0:01:56]} d2 {[%emt 0:01:35]} 0-1